[Event "GCT Superbet Blitz Poland 2025"]
[Site "Warsaw"]
[Date "2025.04.29"]
[Round "4"]
[White "Topalov, Veselin"]
[Black "Fedoseev, Vladimir"]
[Result "0-1"]
[ECO "A13"]
[WhiteElo "2717"]
[BlackElo "2739"]
[Annotator "RC"]
[PlyCount "74"]
[EventDate "2025.??.??"]
[EventType "blitz"]
[TimeControl "300+2"]

1. c4 {[%emt 0:00:01]} e6 {[%emt 0:00:02]} 2. b3 {[%emt 0:00:08]} Be7 {[%emt 0:00:14]} 3. Bb2 {[%emt 0:00:02]} Bf6 {[%emt 0:00:01]} 4. d4 {[%emt 0:00:05]} c5 {[%emt 0:00:05]} 5. Nf3 {[%emt 0:00:07]} Nc6 {[%emt 0:00:02]} 6. e3 {[%emt 0:00:02]} Nge7 {[%emt 0:00:02]} 7. Qd2 $146 {[%emt 0:01:11]} ({RR} 7. Be2 O-O 8. O-O d5 9. cxd5 Nxd5 10. Qd2 cxd4 11. Nxd4 Nxd4 12. Bxd4 Bd7 13. Nc3 Nxc3 {½-½ (13) Krishilovsky,A-Koniushkov,I (2265) St Petersburg 1995}) ({RR} 7. Be2 O-O 8. O-O d5 9. Qd2 dxc4 10. bxc4 cxd4 11. exd4 Nf5 12. Rd1 Qb6 13. c5 Qc7 14. Na3 b6 15. Nb5 Qd7 16. Ba3 Rd8 17. Nd6 Nxd6 18. cxd6 Bb7 19. Rac1 e5 20. dxe5 Nxe5 21. Nxe5 Bxe5 {Loskutova,A (1800)-Kotov,V Anna 2014 1-0 (31)}) ({RR} 7. Be2 cxd4 8. exd4 d5 9. cxd5 Nxd5 10. O-O O-O 11. Na3 Nf4 12. Bb5 Ne7 13. Re1 a6 14. Bf1 b5 15. g3 Nfg6 16. Bg2 Bb7 17. Nc2 Rc8 18. Ne3 h5 19. Qe2 Nc6 20. Rad1 Nb4 21. Ne5 Bxg2 {Grecescu,G (2383)-Marinescu,M (2252) Cluj 2008 ½-½ (61)}) 7... cxd4 {[%emt 0:00:08]} 8. Nxd4 {[%emt 0:00:01]} O-O {[%emt 0:00:57]} 9. Be2 {[%emt 0:00:02]} d5 {[%emt 0:00:15]} 10. cxd5 {[%emt 0:00:07]} Qxd5 {[%emt 0:00:16]} 11. Nc3 {[%emt 0:00:06]} Qxg2 {[%emt 0:00:13]} 12. O-O-O {[%emt 0:00:24]} Nxd4 {[%emt 0:00:01]} 13. exd4 {[%emt 0:00:01]} Bg5 {[%emt 0:00:52]} 14. f4 {[%emt 0:00:02]} Bh6 {[%emt 0:00:02]} 15. Rhg1 {[%emt 0:00:09]} Qxh2 {[%emt 0:00:06]} 16. Kb1 {[%emt 0:00:24]} e5 {[%emt 0:00:06]} 17. d5 {[%emt 0:00:28]} Bf5+ {[%emt 0:00:20]} 18. Ka1 {[%emt 0:00:00]} Rad8 {[%emt 0:00:29]} 19. d6 {[%emt 0:00:01]} Ng6 {[%emt 0:00:07]} 20. Nd5 {[%emt 0:00:08]} Bxf4 {[%emt 0:00:05]} 21. Qe1 {[%emt 0:00:09]} Rxd6 {[%emt 0:00:09]} 22. Ne7+ {[%emt 0:00:23]} Nxe7 {[%emt 0:00:02]} 23. Rxd6 {[%emt 0:00:01]} Ng6 {[%emt 0:00:12]} 24. Bc4 {[%emt 0:00:03]} e4 {[%emt 0:00:14]} 25. Rd5 {[%emt 0:00:22]} Be6 {[%emt 0:00:03]} 26. Rh1 {[%emt 0:00:46]} Qg3 {[%emt 0:00:02]} 27. Qxe4 {[%emt 0:00:04]} Bxd5 {[%emt 0:00:06]} 28. Bxd5 {[%emt 0:00:03]} Be5 {[%emt 0:00:04]} 29. Bxb7 {[%emt 0:00:09]} Rd8 {[%emt 0:00:16]} 30. Bxe5 {[%emt 0:00:27]} Qxe5+ {[%emt 0:00:01]} 31. Qxe5 {[%emt 0:00:01]} Nxe5 {[%emt 0:00:01]} 32. Kb2 {[%emt 0:00:04]} g5 {[%emt 0:00:04]} 33. a4 {[%emt 0:00:04]} f5 {[%emt 0:00:10]} 34. Rh5 {[%emt 0:00:03]} Nf7 {[%emt 0:00:01]} 35. b4 {[%emt 0:00:04]} Rb8 {[%emt 0:00:02]} 36. Bd5 {[%emt 0:00:01]} Rxb4+ 37. Kc3 {[%emt 0:00:02]} Rg4 {[%emt 0:00:04]} 0-1

[Event "GCT Superbet Blitz Poland 2025"]
[Site "Warsaw"]
[Date "2025.04.29"]
[Round "4"]
[White "Deac, Bogdan-Daniel"]
[Black "Aronian, Levon"]
[Result "1-0"]
[ECO "E15"]
[WhiteElo "2668"]
[BlackElo "2747"]
[Annotator "RC"]
[PlyCount "121"]
[EventDate "2025.??.??"]
[EventType "blitz"]
[TimeControl "300+2"]

1. Nf3 {[%emt 0:00:02]} Nf6 {[%emt 0:00:02]} 2. c4 {[%emt 0:00:01]} b6 {[%emt 0:00:01]} 3. d4 {[%emt 0:00:04]} e6 {[%emt 0:00:01]} 4. g3 {[%emt 0:00:13]} Ba6 {[%emt 0:00:02]} 5. Nbd2 {[%emt 0:00:02]} Bb7 {[%emt 0:00:21]} 6. Bg2 {[%emt 0:00:09]} c5 {[%emt 0:00:12]} 7. O-O {[%emt 0:00:30]} cxd4 {[%emt 0:00:08]} 8. Nxd4 {[%emt 0:00:01]} Bxg2 {[%emt 0:00:01]} 9. Kxg2 {[%emt 0:00:01]} Bc5 {[%emt 0:00:26]} ({RR} 9... Nc6 10. Nxc6 dxc6 11. Qc2 Be7 12. b3 O-O 13. Bb2 Qc7 14. Nf3 c5 15. Rad1 Rfd8 16. Ne5 Bd6 17. Nf3 Be7 18. Kg1 h6 19. Ne5 Bd6 20. Nf3 Be7 21. Ne5 Bd6 22. Nf3 Be7 {½-½ (22) Wei,Y (2732)-Harikrishna,P (2713) Chess.com INT 2020}) ({RR} 9... d5 10. Qa4+ Nbd7 11. cxd5 Nxd5 12. Rd1 Bc5 13. Ne4 O-O 14. Nxc5 Nxc5 15. Qa3 Qf6 16. Qf3 Rac8 17. Qxf6 Nxf6 18. Bg5 Rfd8 19. Bxf6 gxf6 20. Rac1 a6 21. Kf3 Kf8 22. e3 Ke7 23. b4 Na4 24. a3 {Averjanov,A (2399)-Garv,G (2006) chess.com INT 2023 1-0 (75)}) 10. N4f3 {[%emt 0:00:28]} O-O {[%emt 0:00:07]} 11. b3 {[%emt 0:00:05]} Be7 $146 {[%emt 0:00:01]} ({RR} 11... d5 12. Bb2 Nc6 13. a3 a5 14. cxd5 exd5 15. Ne1 d4 16. Nd3 Qd5+ 17. Kg1 Rfe8 18. Rc1 Ne5 19. Nc4 Nxc4 20. Rxc4 Qh5 21. Nf4 Qf5 22. b4 axb4 23. axb4 Bd6 24. Bxd4 Bxf4 25. Bxf6 Qxf6 26. Rxf4 {Duda,J (2717)-Kovalenko,I (2639) Katowice 2017 1-0 (78)}) 12. Bb2 {[%emt 0:00:13]} d6 {[%emt 0:00:01]} 13. e4 {[%emt 0:00:17]} Nfd7 {[%emt 0:00:38]} 14. Qe2 {[%emt 0:00:27]} Nc6 {[%emt 0:00:08]} 15. Rfd1 {[%emt 0:00:01]} Qc7 {[%emt 0:00:11]} 16. Nf1 {[%emt 0:01:15]} Qb7 {[%emt 0:00:05]} 17. Kg1 {[%emt 0:00:09]} a6 {[%emt 0:00:08]} 18. Rac1 {[%emt 0:00:47]} Rfd8 {[%emt 0:00:12]} 19. h4 {[%emt 0:00:12]} b5 {[%emt 0:00:17]} 20. Ne3 {[%emt 0:00:25]} Rac8 {[%emt 0:00:33]} 21. Ng4 {[%emt 0:00:10]} h6 {[%emt 0:00:39]} 22. e5 {[%emt 0:00:08]} dxe5 {[%emt 0:00:11]} 23. cxb5 {[%emt 0:00:02]} Qxb5 {[%emt 0:00:25]} 24. Qxb5 {[%emt 0:00:02]} axb5 {[%emt 0:00:01]} 25. Ngxe5 {[%emt 0:00:02]} Ncxe5 {[%emt 0:00:14]} 26. Nxe5 {[%emt 0:00:02]} Nxe5 {[%emt 0:00:27]} 27. Bxe5 {[%emt 0:00:02]} f6 {[%emt 0:00:04]} 28. Bf4 {[%emt 0:00:03]} Rxd1+ {[%emt 0:00:11]} 29. Rxd1 {[%emt 0:00:00]} Ra8 {[%emt 0:00:01]} 30. Rd2 {[%emt 0:00:03]} Bc5 {[%emt 0:00:01]} 31. Rc2 {[%emt 0:00:03]} Bd4 {[%emt 0:00:01]} 32. h5 {[%emt 0:00:02]} e5 {[%emt 0:00:05]} 33. Bd2 {[%emt 0:00:01]} Kf7 {[%emt 0:00:03]} 34. Kg2 {[%emt 0:00:02]} f5 {[%emt 0:00:02]} 35. Bb4 {[%emt 0:00:02]} e4 {[%emt 0:00:03]} 36. a3 {[%emt 0:00:02]} Ra7 {[%emt 0:00:05]} 37. Rd2 {[%emt 0:00:01]} Bf6 {[%emt 0:00:05]} 38. Rd5 {[%emt 0:00:01]} Ke6 {[%emt 0:00:00]} 39. Rxb5 {[%emt 0:00:02]} Bd4 {[%emt 0:00:01]} 40. Ra5 {[%emt 0:00:06]} Rc7 {[%emt 0:00:01]} 41. Ra6+ {[%emt 0:00:00]} Kf7 {[%emt 0:00:04]} 42. Rd6 {[%emt 0:00:02]} Be5 {[%emt 0:00:04]} 43. Rd2 {[%emt 0:00:02]} Rc1 {[%emt 0:00:01]} 44. Rd7+ {[%emt 0:00:03]} Ke6 {[%emt 0:00:01]} 45. Rd2 {[%emt 0:00:02]} Rb1 {[%emt 0:00:02]} 46. Ra2 {[%emt 0:00:02]} Rxb3 {[%emt 0:00:01]} 47. Bd2 {[%emt 0:00:01]} Rb2 {[%emt 0:00:04]} 48. Rxb2 {[%emt 0:00:01]} Bxb2 {[%emt 0:00:01]} 49. a4 {[%emt 0:00:01]} Kd5 {[%emt 0:00:00]} 50. a5 {[%emt 0:00:03]} Kc6 {[%emt 0:00:01]} 51. Kf1 {[%emt 0:00:03]} Kb5 {[%emt 0:00:02]} 52. Ke2 {[%emt 0:00:01]} Be5 {[%emt 0:00:03]} 53. Ke3 {[%emt 0:00:01]} Bf6 {[%emt 0:00:01]} 54. Be1 {[%emt 0:00:02]} Be7 {[%emt 0:00:06]} 55. Kf4 {[%emt 0:00:02]} Kc4 {[%emt 0:00:03]} 56. a6 {[%emt 0:00:03]} Bc5 {[%emt 0:00:01]} 57. Kxf5 {[%emt 0:00:01]} Kd3 {[%emt 0:00:00]} 58. g4 {[%emt 0:00:04]} Ke2 {[%emt 0:00:01]} 59. Bc3 {[%emt 0:00:01]} Kf3 {[%emt 0:00:00]} 60. Bxg7 {[%emt 0:00:02]} Bxf2 {[%emt 0:00:01]} 61. Bxh6 {[%emt 0:00:01]} 1-0

[Event "GCT Superbet Blitz Poland 2025"]
[Site "Warsaw"]
[Date "2025.04.29"]
[Round "5"]
[White "Firouzja, Alireza"]
[Black "Deac, Bogdan-Daniel"]
[Result "1/2-1/2"]
[ECO "C54"]
[WhiteElo "2757"]
[BlackElo "2668"]
[Annotator "TA"]
[PlyCount "134"]
[EventDate "2025.??.??"]
[EventType "blitz"]
[TimeControl "300+2"]

{[%evp 13,134,20,21,8,44,42,45,-1,0,1,19,-39,-3,-8,0,0,-18,0,0,-17,0,-18,-15,-18,-13,-55,0,0,0,-14,16,0,0,8,19,12,10,8,18,16,24,0,43,54,42,51,51,64,56,25,50,60,34,10,54,59,174,183,168,184,183,133,150,177,156,8,8,0,0,0,0,-63,-27,-27,0,-24,-24,-39,-25,-45,-13,-26,-28,-31,-31,-31,-31,-60,-26,-60,-45,-79,-32,-48,-33,-51,-22,-22,-22,-37,-22,-74,-41,-70,-23,-64,-23,-88,0,0,0,0,0,0,0,0,0,-8,-8,-8,-8,-8,8]} 1. e4 {[%emt 0:00:00]} e5 {[%emt 0:00:01]} 2. Bc4 {[%emt 0:00:01]} Nf6 {[%emt 0:00:03]} 3. d3 {[%emt 0:00:01]} Nc6 {[%emt 0:00:09]} 4. Nf3 {[%emt 0:00:01]} Bc5 {[%emt 0:00:04]} 5. Bg5 {[%emt 0:00:04]} h6 {[%emt 0:00:02]} 6. Bh4 {[%emt 0:00:01]} d6 {[%emt 0:00:01]} 7. c3 {[%emt 0:00:01]} a6 {[%emt 0:00:01]} 8. Nbd2 $1 {[%emt 0:00:06] 8.Nbd2 scores better than 8.a4. C54: Giuoco Piano: 4 c3 Nf6, main lines with 5 d4 and 5 d3.} Qe7 {[%emt 0:00:01]} 9. b4 {[%emt 0:00:10]} Ba7 10. a4 (10. O-O $14) 10... g5 {[%emt 0:00:42]} ({RR} 10... Be6 11. O-O Bxc4 12. Nxc4 Qe6 13. b5 Ne7 14. Bxf6 Qxf6 15. Rb1 axb5 16. Rxb5 Rb8 17. Qb3 O-O 18. Rxb7 Ng6 19. Rxb8 Rxb8 20. Qd1 c6 21. Re1 Nf4 22. d4 exd4 23. cxd4 Rb4 24. Ne3 Rb2 25. Nc4 {Firouzja,A (2767)-Carlsen,M (2832) Paris FRA 2024 0-1 (35)}) 11. Bg3 {[%emt 0:00:02]} Nh5 {[%emt 0:00:24]} ({RR} 11... O-O 12. O-O Kg7 13. b5 Nd8 14. d4 Nd7 15. Re1 h5 16. h4 g4 17. Nh2 Ne6 18. Nb3 Nf4 19. Nf1 Ng6 20. Ne3 Nb6 21. Bf1 axb5 22. axb5 Nxh4 23. c4 Qg5 24. c5 Nd7 25. Bxh4 Qg6 26. cxd6 {Fier,A (2534)-Le,Q (2739) chess.com INT 2025 1-0 (42)}) 12. b5 {[%emt 0:00:45]} (12. Nb3 $11) 12... Nd8 $146 {[%emt 0:01:34]} ({RR} 12... Na5 13. Bd5 c6 14. Ba2 Qf6 15. O-O Nxg3 16. hxg3 h5 17. Qb1 h4 18. b6 h3 19. Ne1 Qh6 20. f3 g4 21. f4 hxg2 22. Nxg2 Qh2+ 23. Kf2 Rh3 24. bxa7 Rxg3 25. Rg1 exf4 26. Qb6 f3 27. Rae1 {Saric,I (2668)-Dragnev,V (2566) Petrovac MNE 2024 0-1 (38)}) ({RR} 12... Na5 13. Ba2 Qf6 14. d4 Nxg3 15. hxg3 g4 16. Nh4 exd4 17. O-O Be6 18. Bxe6 fxe6 19. e5 dxe5 20. Qxg4 O-O-O 21. Ne4 Qf7 22. bxa6 bxa6 23. cxd4 exd4 24. Rab1 d3 25. Nf3 Qf5 26. Qh4 Rhg8 27. Rfc1 {Fedorov,A (2529)-Girya,O (2432) Cheliabinsk 2021 ½-½ (39)}) ({RR} 12... Na5 13. Ba2 f5 14. exf5 Bxf5 15. Ne4 Bxe4 16. dxe4 Bc5 17. O-O Nxg3 18. hxg3 h5 19. Rb1 axb5 20. Rxb5 b6 21. Qd2 h4 22. g4 h3 23. g3 O-O-O 24. Qxg5 Qd7 25. Qf5 Kb8 26. Qxd7 Rxd7 27. Be6 {Yu Yangyi (2735)-Navara,D (2689) Biel SUI 2023 1-0 (46)}) 13. Nf1 $146 {[%emt 0:00:21]} (13. bxa6 bxa6 14. Rb1 Qf6 15. d4 Nxg3 16. hxg3 g4 17. Nh4 exd4 18. cxd4 Bxd4 19. O-O {1-0 Caruana,F (2819)-Anand,V (2767) Norway Chess Armageddon 7th blitz 2019 (7)}) 13... Nf4 {[%emt 0:00:30]} 14. Bxf4 {[%emt 0:00:53]} gxf4 {[%emt 0:00:02]} 15. N1d2 {[%emt 0:00:04]} Rg8 {[%emt 0:00:31]} 16. Kf1 {[%emt 0:00:08]} Ne6 {[%emt 0:00:24]} 17. bxa6 {[%emt 0:00:39]} bxa6 {[%emt 0:00:02]} 18. Rb1 {[%emt 0:00:03][%cal Od3d4]} c6 {[%emt 0:00:13]} 19. a5 {[%emt 0:00:45]} Qc7 {[%emt 0:00:15]} (19... Nc7 $15) 20. Qa4 $11 {[%emt 0:00:07]} Bd7 {[%emt 0:00:37][%cal Od6d5]} 21. Qa2 {[%emt 0:00:00][%cal Of3h4] Active counter play!} (21. Bxa6 $2 Nc5 22. Qa1 Nxa6 $19) 21... Rb8 {[%emt 0:00:03]} (21... Kf8 $5) 22. Rxb8+ {[%emt 0:00:06]} Qxb8 {[%emt 0:00:01]} 23. g3 {[%emt 0:00:07]} Ke7 {[%emt 0:00:04]} 24. Ke2 {[%emt 0:00:03]} Qc7 {[%emt 0:00:01]} 25. Rb1 {[%emt 0:00:26]} Rb8 {[%emt 0:00:01]} 26. Rxb8 {[%emt 0:00:08]} Qxb8 {[%emt 0:00:01]} 27. Bxa6 {[%emt 0:00:02]} Bxf2 {[%emt 0:00:01]} 28. Kxf2 {[%emt 0:00:19]} Qa7+ {[#]} 29. d4 $1 {[%emt 0:00:01]} exd4 {[%emt 0:00:05] [#]} 30. cxd4 {[%emt 0:00:03]} Qxa6 {[%emt 0:00:03]} 31. Qa3 {[%emt 0:00:07]} fxg3+ {[%emt 0:00:01]} 32. hxg3 {[%emt 0:00:01]} c5 {[%emt 0:00:03]} 33. e5 {[%emt 0:00:12]} dxe5 {[%emt 0:00:03]} 34. d5 {[%emt 0:00:08]} Nc7 {[%emt 0:00:01]} (34... Nd4 $14 35. Qxc5+ Ke8 36. Nxd4 (36. Nxe5 Qe2+ 37. Kg1 Bh3) 36... exd4) 35. Ne4 $1 $18 {[%emt 0:00:05]} (35. Nxe5 $6 Qf6+ 36. Nef3 Qd6 $14) (35. Qxc5+ $6 Qd6 36. Qxd6+ Kxd6) 35... Nxd5 {[%emt 0:00:03]} 36. Qxc5+ {[%emt 0:00:02]} (36. Nxe5 Nf6 37. Nxc5 (37. Qxc5+ Ke8 $18) 37... Qd6) 36... Ke6 {[%emt 0:00:02] [#]} 37. Qf8 $1 {[%emt 0:00:03]} Qa7+ {[%emt 0:00:03]} 38. Nc5+ {[%emt 0:00:04] Excellent horsemanship.} Kf6 {[%emt 0:00:01] [#]} 39. Qd6+ {[%emt 0:00:03]} (39. Qxh6+ Ke7 40. Qg5+ Kf8 $11) (39. Nh4 $1 $16 {Black must now prevent Qh8+.} Nc7 40. Kg2 (40. Qxh6+ Ke7 $16)) 39... Be6 $11 {[%emt 0:00:02]} 40. Qxe5+ {[%emt 0:00:01]} (40. a6 Qc7 41. Qxc7 Nxc7 42. Nxe6 Kxe6 43. a7) 40... Ke7 {[%emt 0:00:01]} 41. Qd4 {[%emt 0:00:05]} Qxa5 {[%emt 0:00:01]} 42. Nd3 {[%emt 0:00:04]} (42. Nxe6 $11 Kxe6 43. Qe4+ Kd6 44. Kg2) 42... Qb6 {[%emt 0:00:03]} (42... Qa2+ 43. Kf1 Qb1+ 44. Kf2 Qc2+) 43. Nc5 {[%emt 0:00:02]} Qb4 {[%emt 0:00:01]} (43... Nf6 {keeps more tension.} 44. Nxe6 Ng4+ 45. Kg1 Qxe6 46. Nh4 Qe1+) 44. Qxb4 {[%emt 0:00:03]} Nxb4 {[%emt 0:00:01][%mdl 4096] Endgame KBN-KNN. Black is a pawn up.} 45. Nd4 {[%emt 0:00:01]} Nd5 {[%emt 0:00:01]} 46. Ne4 {[%emt 0:00:01]} Nc7 {[%emt 0:00:04]} 47. Nc6+ {[%emt 0:00:02]} Kf8 {[%emt 0:00:00] And now ...Bd5 would win.} 48. Nf6 {[%emt 0:00:02]} Kg7 {[%emt 0:00:03]} 49. Nh5+ {[%emt 0:00:01]} Kg6 {[%emt 0:00:02]} 50. Nf4+ {[%emt 0:00:00]} Kg5 {[%emt 0:00:01]} 51. Nd4 {[%emt 0:00:03]} Bg4 {[%emt 0:00:03]} 52. Nc6 {[%emt 0:00:03]} Ne6 {[%emt 0:00:04]} ({Better is} 52... Nb5 $17) 53. Nd3 {[%emt 0:00:03]} f6 {[%emt 0:00:03]} 54. Ncb4 {[%emt 0:00:03]} h5 {[%emt 0:00:03]} 55. Nd5 {[%emt 0:00:01]} Bf5 {[%emt 0:00:01]} 56. Ne1 {[%emt 0:00:04]} Be4 {[%emt 0:00:02]} 57. Nc3 {[%emt 0:00:00]} (57. Nf3+ $11 Kg6 58. Ne7+ Kf7 59. Nc8) 57... Bc6 {[%emt 0:00:01]} 58. Nd3 {[%emt 0:00:02]} Nd4 {[%emt 0:00:04]} (58... Nc7 $15) 59. Nb4 {[%emt 0:00:03]} Bb7 {[%emt 0:00:01]} 60. Nd3 {[%emt 0:00:01]} (60. Nbd5 $11 {keeps the balance.}) 60... Nc6 {[%emt 0:00:03]} (60... Nb5 $17 61. Nxb5 Ba6) 61. Ne4+ {[%emt 0:00:02] The position is equal.} Kh6 {[%emt 0:00:02]} 62. Nxf6 {[%emt 0:00:01]} Nd4 {[%emt 0:00:02]} 63. Nf4 {[%emt 0:00:04]} Nf5 {[%emt 0:00:02]} 64. N6xh5 {[%emt 0:00:02]} Kg5 {[%emt 0:00:02]} 65. Ke1 {[%emt 0:00:02]} Bf3 {[%emt 0:00:01]} 66. Kf2 {[%emt 0:00:01]} Bxh5 {[%emt 0:00:01]} 67. Nxh5 {[%emt 0:00:01]} Nxg3 {[%emt 0:00:02] Weighted Error Value: White=0.20 (precise) /Black=0.20 (precise) Mistake: 	White=6 	Black=5 Inaccurate: 	White=5 	Black=12 OK: 	White=21 	Black=15 Best: 	White=2 	Black=7 Strong: 	White=2 	---} 1/2-1/2

[Event "GCT Superbet Blitz Poland 2025"]
[Site "Warsaw"]
[Date "2025.04.29"]
[Round "5"]
[White "Aronian, Levon"]
[Black "Aravindh, Chithambaram VR."]
[Result "1/2-1/2"]
[ECO "C24"]
[WhiteElo "2747"]
[BlackElo "2749"]
[Annotator "RC"]
[PlyCount "122"]
[EventDate "2025.??.??"]
[EventType "blitz"]
[TimeControl "300+2"]

1. e4 {[%emt 0:00:02]} e5 {[%emt 0:00:03]} 2. Nf3 {[%emt 0:00:02]} Nc6 {[%emt 0:00:02]} 3. Bc4 {[%emt 0:00:01]} Nf6 {[%emt 0:00:03]} 4. d3 {[%emt 0:00:01]} d5 {[%emt 0:00:01]} 5. exd5 {[%emt 0:00:01]} Nxd5 {[%emt 0:00:02]} 6. a4 {[%emt 0:00:09]} Bg4 {[%emt 0:00:11]} ({RR} 6... Be7 7. a5 O-O 8. c3 Be6 9. O-O Qd7 10. Re1 f6 11. Nbd2 Bf7 12. Ne4 b6 13. Qa4 a6 14. axb6 cxb6 15. Qd1 b5 16. Bb3 Rfd8 17. d4 exd4 18. Nxd4 Bf8 19. Nxc6 Qxc6 20. Qf3 a5 21. Be3 {Dubov,D (2710)-Madaminov,M (2494) chess.com INT 2023 ½-½ (80)}) 7. h3 $146 {[%emt 0:00:24]} ({RR} 7. O-O Be7 8. Nbd2 O-O 9. c3 Qd7 10. Qe1 Bf6 11. Bxd5 Qxd5 12. Qe4 Qxe4 13. dxe4 Rad8 14. h3 Be6 15. Re1 Na5 16. b4 Nc4 17. Nxc4 Bxc4 18. Be3 a6 19. Rac1 Rfe8 20. g4 Bd3 21. Bd2 h6 {Zalomska,N (1174)-Sieber,C (1001) Willingen 2018 ½-½ (58)}) ({RR} 7. O-O Qd6 8. h3 Bh5 9. a5 {½-½ (9) Raczek,K (2428)-Willow,J (2450) Stafford ENG 2025}) 7... Bh5 {[%emt 0:00:02]} 8. Nc3 {[%emt 0:00:11]} Bb4 {[%emt 0:00:41]} 9. Bd2 {[%emt 0:00:13]} Bxc3 {[%emt 0:00:11]} 10. bxc3 {[%emt 0:00:01]} O-O {[%emt 0:00:03]} 11. g4 {[%emt 0:00:30]} Bg6 {[%emt 0:00:02]} 12. Ng5 {[%emt 0:00:01]} Nf4 {[%emt 0:00:41]} 13. h4 {[%emt 0:00:49]} Qf6 {[%emt 0:00:15]} 14. Qf3 {[%emt 0:00:35]} h5 {[%emt 0:01:56]} 15. gxh5 {[%emt 0:00:09]} Bxh5 {[%emt 0:00:05]} 16. Qg3 {[%emt 0:00:00]} Rae8 {[%emt 0:00:18]} 17. Ne4 {[%emt 0:00:19]} Qh6 {[%emt 0:00:01]} 18. Qg5 {[%emt 0:00:26]} Qg6 {[%emt 0:00:26]} 19. Rg1 {[%emt 0:00:16]} Kh8 {[%emt 0:00:03]} 20. Qxg6 {[%emt 0:00:18]} Bxg6 {[%emt 0:00:03]} 21. f3 {[%emt 0:00:16]} Bh5 {[%emt 0:00:08]} 22. Rg3 {[%emt 0:00:04]} f6 {[%emt 0:00:09]} 23. Rb1 {[%emt 0:00:03]} b6 {[%emt 0:00:02]} 24. Bb5 {[%emt 0:00:27]} Re6 {[%emt 0:00:01]} 25. Bxc6 {[%emt 0:00:01]} Rxc6 {[%emt 0:00:01]} 26. c4 {[%emt 0:00:01]} Ne6 {[%emt 0:00:04]} 27. Bc3 {[%emt 0:00:02]} a5 {[%emt 0:00:07]} 28. Kf2 {[%emt 0:00:08]} Nc5 {[%emt 0:00:05]} 29. Ra1 {[%emt 0:00:11]} Nd7 {[%emt 0:00:09]} 30. Bd2 {[%emt 0:00:02]} Nc5 {[%emt 0:00:02]} 31. Nxc5 {[%emt 0:00:10]} Rxc5 {[%emt 0:00:02]} 32. Rag1 {[%emt 0:00:03]} Rf7 {[%emt 0:00:04]} 33. Be3 {[%emt 0:00:04]} Rc6 {[%emt 0:00:00]} 34. f4 {[%emt 0:00:02]} exf4 {[%emt 0:00:03]} 35. Bxf4 {[%emt 0:00:01]} Re6 {[%emt 0:00:02]} 36. Re3 {[%emt 0:00:04]} Rxe3 {[%emt 0:00:01]} 37. Kxe3 {[%emt 0:00:02]} Re7+ {[%emt 0:00:01]} 38. Kd2 {[%emt 0:00:00]} Be8 {[%emt 0:00:01]} 39. Re1 {[%emt 0:00:01]} Rxe1 {[%emt 0:00:04]} 40. Kxe1 {[%emt 0:00:00]} Bxa4 {[%emt 0:00:03]} 41. Bxc7 {[%emt 0:00:01]} b5 {[%emt 0:00:02]} 42. cxb5 {[%emt 0:00:06]} Bxb5 {[%emt 0:00:02]} 43. Bxa5 {[%emt 0:00:01]} Kg8 {[%emt 0:00:02]} 44. Bd2 {[%emt 0:00:03]} Kf7 {[%emt 0:00:01]} 45. c4 {[%emt 0:00:01]} Ba6 {[%emt 0:00:02]} 46. Ke2 {[%emt 0:00:01]} Ke6 {[%emt 0:00:01]} 47. Ke3 {[%emt 0:00:03]} Kf5 {[%emt 0:00:03]} 48. Kd4 {[%emt 0:00:03]} Kg4 {[%emt 0:00:03]} 49. Be1 {[%emt 0:00:00]} g5 {[%emt 0:00:02]} 50. hxg5 {[%emt 0:00:03]} fxg5 {[%emt 0:00:01]} 51. Kc5 {[%emt 0:00:02]} Kf3 {[%emt 0:00:03]} 52. d4 {[%emt 0:00:01]} Ke2 {[%emt 0:00:01]} 53. Bg3 {[%emt 0:00:08]} Kd3 {[%emt 0:00:01]} 54. d5 {[%emt 0:00:01]} Bxc4 {[%emt 0:00:01]} 55. d6 {[%emt 0:00:01]} Be6 {[%emt 0:00:02]} 56. Kc6 {[%emt 0:00:01]} Ke4 {[%emt 0:00:01]} 57. d7 {[%emt 0:00:01]} Bxd7+ {[%emt 0:00:01]} 58. Kxd7 {[%emt 0:00:00]} Kf3 {[%emt 0:00:02]} 59. Be5 {[%emt 0:00:01]} g4 {[%emt 0:00:01]} 60. Kd6 {[%emt 0:00:01]} g3 {[%emt 0:00:01]} 61. Bxg3 {[%emt 0:00:00]} Kxg3 {[%emt 0:00:01]} 1/2-1/2